[Event "*** Titled Tuesday Blitz"]
[Site "Chess.com"]
[Date "2018.06.05"]
[Round "3"]
[White "aqmarkin"]
[Black "ulises2013"]
[Result "0-1"]
[WhiteElo "2216"]
[BlackElo "2376"]
[TimeControl "180+2"]
[EndTime "13:40:39 PDT"]
[Termination "ulises2013 won by resignation"]

1. e4 {[%clk 0:03:01.9]} 1... g6 {[%clk 0:03:00]} 2. d4 {[%clk 0:03:02.4]} 2...
Bg7 {[%clk 0:03:01.5]} 3. Nc3 {[%clk 0:03:03.5]} 3... c5 {[%clk 0:03:03]} 4. Be3
{[%clk 0:02:59.2]} 4... Qa5 {[%clk 0:03:03.3]} 5. Be2 {[%clk 0:02:55.7]} 5...
Nf6 {[%clk 0:02:56.2]} 6. Bf3 {[%clk 0:02:51.1]} 6... cxd4 {[%clk 0:02:53.4]} 7.
Bxd4 {[%clk 0:02:50.6]} 7... Nc6 {[%clk 0:02:54.7]} 8. Be3 {[%clk 0:02:49.8]}
8... d6 {[%clk 0:02:55.4]} 9. Ne2 {[%clk 0:02:46.1]} 9... Ne5 {[%clk 0:02:54.8]}
10. Nd4 {[%clk 0:02:41.7]} 10... Nxf3+ {[%clk 0:02:54.3]} 11. gxf3 {[%clk
0:02:43.6]} 11... O-O {[%clk 0:02:54.8]} 12. Qd2 {[%clk 0:02:40.7]} 12... Bd7
{[%clk 0:02:50.8]} 13. h4 {[%clk 0:02:38.3]} 13... h5 {[%clk 0:02:50.2]} 14. Rg1
{[%clk 0:02:34.5]} 14... Kh7 {[%clk 0:02:50.3]} 15. Rg5 {[%clk 0:02:22.8]} 15...
Qc7 {[%clk 0:02:44.8]} 16. f4 {[%clk 0:02:19.4]} 16... Bh6 {[%clk 0:02:41.3]}
17. Rg3 {[%clk 0:01:47.9]} 17... Ng4 {[%clk 0:02:26]} 18. O-O-O {[%clk
0:01:33.4]} 18... a6 {[%clk 0:02:16.1]} 19. Nf3 {[%clk 0:01:22.5]} 19... Nxe3
{[%clk 0:02:12.1]} 20. fxe3 {[%clk 0:01:19.5]} 20... Bg4 {[%clk 0:02:08.8]} 21.
Rdg1 {[%clk 0:01:09.5]} 21... e6 {[%clk 0:01:57.7]} 22. Nd4 {[%clk 0:01:01.1]}
22... Qe7 {[%clk 0:01:44.6]} 23. Qh2 {[%clk 0:00:46.8]} 23... f5 {[%clk
0:01:33.9]} 24. R1g2 {[%clk 0:00:33.7]} 24... b5 {[%clk 0:01:29.7]} 25. a3
{[%clk 0:00:31.9]} 25... Rac8 {[%clk 0:01:28.3]} 26. Rd2 {[%clk 0:00:29.4]}
26... Rc4 {[%clk 0:01:27.3]} 27. Rg1 {[%clk 0:00:21.5]} 27... Rfc8 {[%clk
0:01:25.8]} 28. Na2 {[%clk 0:00:19.7]} 28... Qf7 {[%clk 0:00:51.6]} 29. c3
{[%clk 0:00:15.1]} 29... e5 {[%clk 0:00:46.3]} 30. Ne2 {[%clk 0:00:11.3]} 30...
Rxe4 {[%clk 0:00:45.7]} 31. Nb4 {[%clk 0:00:08.9]} 31... Rxe3 {[%clk 0:00:45.6]}
32. Nd5 {[%clk 0:00:08.4]} 32... Rxe2 {[%clk 0:00:41.6]} 33. Rxe2 {[%clk
0:00:10.3]} 33... Bxe2 {[%clk 0:00:42.7]} 34. Qxe2 {[%clk 0:00:11.8]} 34... Qxd5
{[%clk 0:00:43.3]} 0-1

[Event "*** Titled Tuesday Blitz"]
[Site "Chess.com"]
[Date "2018.06.05"]
[Round "3"]
[White "Jooonaaas1996"]
[Black "Gr3egor"]
[Result "1-0"]
[WhiteElo "2280"]
[BlackElo "2357"]
[TimeControl "180+2"]
[EndTime "13:40:41 PDT"]
[Termination "Jooonaaas1996 won by resignation"]

1. e4 {[%clk 0:03:01.9]} 1... e5 {[%clk 0:02:59.4]} 2. Nf3 {[%clk 0:03:02.9]}
2... Nc6 {[%clk 0:03:00.9]} 3. Bb5 {[%clk 0:03:04.3]} 3... a6 {[%clk 0:03:01.7]}
4. Ba4 {[%clk 0:03:05.5]} 4... Nf6 {[%clk 0:03:01.5]} 5. O-O {[%clk 0:03:06.4]}
5... Be7 {[%clk 0:03:01.6]} 6. Re1 {[%clk 0:03:07.1]} 6... b5 {[%clk 0:03:02.8]}
7. Bb3 {[%clk 0:03:07.6]} 7... O-O {[%clk 0:03:04.3]} 8. a3 {[%clk 0:03:08.3]}
8... Bb7 {[%clk 0:02:58.7]} 9. d3 {[%clk 0:03:07.4]} 9... d5 {[%clk 0:02:59.3]}
10. exd5 {[%clk 0:02:48]} 10... Nxd5 {[%clk 0:03:00]} 11. Nxe5 {[%clk
0:02:45.4]} 11... Nd4 {[%clk 0:02:54.4]} 12. Ba2 {[%clk 0:02:30.3]} 12... Bd6
{[%clk 0:02:47.4]} 13. c3 {[%clk 0:02:02.9]} 13... Ne6 {[%clk 0:02:41.5]} 14.
Qg4 {[%clk 0:01:31.9]} 14... Qf6 {[%clk 0:02:35.4]} 15. Nd7 {[%clk 0:01:23.9]}
15... Bxh2+ {[%clk 0:01:55]} 16. Kxh2 {[%clk 0:00:46.7]} 16... Qxf2 {[%clk
0:01:55.7]} 17. Qg3 {[%clk 0:00:44.5]} 17... Qxg3+ {[%clk 0:01:54.3]} 18. Kxg3
{[%clk 0:00:45]} 18... Rfd8 {[%clk 0:01:54]} 19. Ne5 {[%clk 0:00:44.9]} 19... c5
{[%clk 0:01:53.1]} 20. Nf3 {[%clk 0:00:44.5]} 20... Nf6 {[%clk 0:01:49.6]} 21.
Bxe6 {[%clk 0:00:43.3]} 21... fxe6 {[%clk 0:01:51.5]} 22. Ne5 {[%clk 0:00:36.2]}
22... Rd5 {[%clk 0:01:44.5]} 23. Nd2 {[%clk 0:00:27.2]} 23... Rad8 {[%clk
0:01:42]} 24. Ndf3 {[%clk 0:00:27.4]} 24... h6 {[%clk 0:01:33.3]} 25. a4 {[%clk
0:00:25.1]} 25... c4 {[%clk 0:01:24.8]} 26. axb5 {[%clk 0:00:21.8]} 26... axb5
{[%clk 0:01:24.5]} 27. dxc4 {[%clk 0:00:22.4]} 27... bxc4 {[%clk 0:01:25.4]} 28.
Ra7 {[%clk 0:00:23.5]} 28... Ba8 {[%clk 0:01:25.6]} 29. Be3 {[%clk 0:00:22.1]}
29... Ne4+ {[%clk 0:01:25.4]} 30. Kh2 {[%clk 0:00:22.8]} 30... Nc5 {[%clk
0:01:11.4]} 31. Bxc5 {[%clk 0:00:22.5]} 31... Rxc5 {[%clk 0:01:12.1]} 32. Nd4
{[%clk 0:00:21.7]} 32... Bd5 {[%clk 0:01:12]} 33. Nd7 {[%clk 0:00:21.6]} 33...
Rcc8 {[%clk 0:01:09]} 34. Nb6 {[%clk 0:00:22.9]} 34... Rb8 {[%clk 0:01:09.6]}
35. Nxd5 {[%clk 0:00:23.8]} 35... Rxd5 {[%clk 0:01:10.6]} 36. Rxe6 {[%clk
0:00:24.6]} 36... Rxb2 {[%clk 0:01:09.4]} 37. Rg6 {[%clk 0:00:26]} 37... Rg5
{[%clk 0:01:07.1]} 38. Rxg5 {[%clk 0:00:27]} 38... hxg5 {[%clk 0:01:08.1]} 39.
Rc7 {[%clk 0:00:28.2]} 39... Kh7 {[%clk 0:01:07.6]} 40. Rxc4 {[%clk 0:00:29.3]}
40... Kh6 {[%clk 0:01:09.5]} 41. Nf3 {[%clk 0:00:29.5]} 41... g4 {[%clk
0:01:10.4]} 42. Rxg4 {[%clk 0:00:29.7]} 42... Rc2 {[%clk 0:01:11.4]} 43. Rc4
{[%clk 0:00:30.5]} 43... g6 {[%clk 0:01:12.2]} 44. Rh4+ {[%clk 0:00:31]} 1-0

[Event "*** Titled Tuesday Blitz"]
[Site "Chess.com"]
[Date "2018.06.05"]
[Round "3"]
[White "GM_dmitrij"]
[Black "Zaven_ChessMood"]
[Result "0-1"]
[WhiteElo "2669"]
[BlackElo "2862"]
[TimeControl "180+2"]
[EndTime "13:40:43 PDT"]
[Termination "Zaven_ChessMood won by resignation"]

1. e4 {[%clk 0:03:01]} 1... c5 {[%clk 0:03:00.2]} 2. Nf3 {[%clk 0:03:00.9]} 2...
d6 {[%clk 0:03:01.5]} 3. Bb5+ {[%clk 0:02:58]} 3... Nc6 {[%clk 0:03:02]} 4. O-O
{[%clk 0:02:58.2]} 4... Bd7 {[%clk 0:03:02.9]} 5. Re1 {[%clk 0:02:59]} 5... Nf6
{[%clk 0:03:03.5]} 6. c3 {[%clk 0:02:59.3]} 6... a6 {[%clk 0:03:02.7]} 7. Bf1
{[%clk 0:03:00.8]} 7... Bg4 {[%clk 0:03:03]} 8. d4 {[%clk 0:03:02.3]} 8... cxd4
{[%clk 0:02:57.3]} 9. cxd4 {[%clk 0:03:04.2]} 9... e5 {[%clk 0:02:58.2]} 10. Be3
{[%clk 0:03:04.5]} 10... exd4 {[%clk 0:02:40]} 11. Bxd4 {[%clk 0:03:05.3]} 11...
Be7 {[%clk 0:02:38]} 12. Nc3 {[%clk 0:03:05.8]} 12... Nxd4 {[%clk 0:02:32]} 13.
Qxd4 {[%clk 0:03:05.9]} 13... Bxf3 {[%clk 0:02:32.5]} 14. gxf3 {[%clk
0:03:07.8]} 14... O-O {[%clk 0:02:33.4]} 15. Rad1 {[%clk 0:03:08.5]} 15... Qa5
{[%clk 0:02:23.9]} 16. f4 {[%clk 0:02:45.2]} 16... Rad8 {[%clk 0:02:20.4]} 17.
Qe3 {[%clk 0:02:44.3]} 17... d5 {[%clk 0:02:12.2]} 18. e5 {[%clk 0:02:24.2]}
18... d4 {[%clk 0:02:12.3]} 19. Rxd4 {[%clk 0:01:45.6]} 19... Ng4 {[%clk
0:02:09.1]} 20. Rxd8 {[%clk 0:01:24.8]} 20... Nxe3 {[%clk 0:02:06.5]} 21. Rxf8+
{[%clk 0:01:26.7]} 21... Bxf8 {[%clk 0:02:05.9]} 22. fxe3 {[%clk 0:01:28.6]}
22... Bb4 {[%clk 0:01:55.4]} 23. Rd1 {[%clk 0:01:27.7]} 23... Bxc3 {[%clk
0:01:51.3]} 24. bxc3 {[%clk 0:01:29.6]} 24... g5 {[%clk 0:01:44.6]} 25. Rd2
{[%clk 0:01:04.1]} 25... Qxc3 {[%clk 0:01:41.4]} 26. Re2 {[%clk 0:01:05.5]}
26... b5 {[%clk 0:01:38.4]} 27. Kf2 {[%clk 0:00:49.4]} 27... b4 {[%clk
0:01:38.7]} 28. Kf3 {[%clk 0:00:49.7]} 28... gxf4 {[%clk 0:01:34.6]} 29. Kxf4
{[%clk 0:00:47.1]} 29... a5 {[%clk 0:01:34.8]} 30. Bg2 {[%clk 0:00:41.4]} 30...
Qc4+ {[%clk 0:01:33.8]} 31. Kf3 {[%clk 0:00:40.9]} 31... a4 {[%clk 0:01:32.9]}
32. Bh3 {[%clk 0:00:33.6]} 32... b3 {[%clk 0:01:28.9]} 33. axb3 {[%clk
0:00:35.5]} 33... axb3 {[%clk 0:01:29.4]} 34. Bf5 {[%clk 0:00:31.8]} 34... Kf8
{[%clk 0:01:24.6]} 35. Rb2 {[%clk 0:00:22.8]} 35... Qc3 {[%clk 0:01:20.3]} 36.
Rb1 {[%clk 0:00:15.6]} 36... h5 {[%clk 0:01:20.1]} 37. Kf4 {[%clk 0:00:16.3]}
37... Ke7 {[%clk 0:01:16.8]} 38. h3 {[%clk 0:00:17.5]} 38... b2 {[%clk
0:01:16.4]} 39. Be4 {[%clk 0:00:17.8]} 39... Qd2 {[%clk 0:01:15.8]} 40. Bf5
{[%clk 0:00:17.9]} 40... Qf2+ {[%clk 0:01:14.2]} 41. Ke4 {[%clk 0:00:19.1]}
41... h4 {[%clk 0:01:14.8]} 42. Kd4 {[%clk 0:00:18.9]} 42... Qxf5 {[%clk
0:01:14.3]} 0-1

[Event "*** Titled Tuesday Blitz"]
[Site "Chess.com"]
[Date "2018.06.05"]
[Round "3"]
[White "FMAntonio"]
[Black "HomayoonTofighi"]
[Result "0-1"]
[WhiteElo "2433"]
[BlackElo "2750"]
[TimeControl "180+2"]
[EndTime "13:40:43 PDT"]
[Termination "HomayoonTofighi won by resignation"]

1. d4 {[%clk 0:03:01.9]} 1... e6 {[%clk 0:03:00.9]} 2. c4 {[%clk 0:03:02.8]}
2... Nf6 {[%clk 0:03:01.5]} 3. Nc3 {[%clk 0:03:03.6]} 3... Bb4 {[%clk
0:03:01.8]} 4. e3 {[%clk 0:03:04.5]} 4... c5 {[%clk 0:03:01.8]} 5. Ne2 {[%clk
0:03:04.9]} 5... cxd4 {[%clk 0:03:02.3]} 6. exd4 {[%clk 0:03:06]} 6... d5 {[%clk
0:03:01.9]} 7. a3 {[%clk 0:03:06.8]} 7... Bxc3+ {[%clk 0:03:00.5]} 8. Nxc3
{[%clk 0:03:07.8]} 8... O-O {[%clk 0:03:01.6]} 9. cxd5 {[%clk 0:02:55.4]} 9...
Nxd5 {[%clk 0:03:01.8]} 10. Bd3 {[%clk 0:02:56.4]} 10... Nc6 {[%clk 0:03:01.5]}
11. O-O {[%clk 0:02:57.1]} 11... Nf6 {[%clk 0:03:01.7]} 12. Be3 {[%clk
0:02:56.4]} 12... b6 {[%clk 0:03:02.8]} 13. Qf3 {[%clk 0:02:40.7]} 13... Bb7
{[%clk 0:03:02.5]} 14. Rad1 {[%clk 0:02:36]} 14... Qd7 {[%clk 0:02:47.4]} 15.
Qh3 {[%clk 0:02:32.7]} 15... Ne7 {[%clk 0:02:46.4]} 16. Bg5 {[%clk 0:02:20.7]}
16... Ng6 {[%clk 0:02:47.2]} 17. Bxf6 {[%clk 0:02:14.4]} 17... gxf6 {[%clk
0:02:48.1]} 18. d5 {[%clk 0:02:15.6]} 18... Qe7 {[%clk 0:02:24.3]} 19. Rfe1
{[%clk 0:01:58.5]} 19... e5 {[%clk 0:01:57.2]} 20. d6 {[%clk 0:01:51.2]} 20...
Qe6 {[%clk 0:01:56.4]} 21. Bf5 {[%clk 0:01:48.3]} 21... Qc4 {[%clk 0:01:56.2]}
22. Be4 {[%clk 0:01:11.4]} 22... Bxe4 {[%clk 0:01:49.7]} 23. Nxe4 {[%clk
0:01:08.8]} 23... Kg7 {[%clk 0:01:44.5]} 24. Qf3 {[%clk 0:01:05.3]} 24... Qe6
{[%clk 0:01:39.3]} 25. d7 {[%clk 0:00:55.8]} 25... f5 {[%clk 0:01:33.1]} 26. Ng3
{[%clk 0:00:55.1]} 26... f4 {[%clk 0:01:28.4]} 27. Ne4 {[%clk 0:00:27.9]} 27...
Rad8 {[%clk 0:01:25.5]} 28. Rd6 {[%clk 0:00:23.5]} 28... Qe7 {[%clk 0:01:26.4]}
29. Red1 {[%clk 0:00:23.9]} 29... f5 {[%clk 0:01:25.8]} 30. Ng5 {[%clk
0:00:24.7]} 30... Qxg5 {[%clk 0:01:25.4]} 31. g3 {[%clk 0:00:13.4]} 31... fxg3
{[%clk 0:01:24.6]} 32. hxg3 {[%clk 0:00:13.9]} 32... Rf7 {[%clk 0:01:24.4]} 33.
Qc3 {[%clk 0:00:13.8]} 33... h5 {[%clk 0:01:22.6]} 34. Re6 {[%clk 0:00:05.3]}
34... Rdxd7 {[%clk 0:01:17.2]} 35. Rxd7 {[%clk 0:00:04.3]} 35... Rxd7 {[%clk
0:01:17.9]} 36. Qc6 {[%clk 0:00:03.3]} 36... Rf7 {[%clk 0:01:17.6]} 37. Qd6
{[%clk 0:00:03]} 37... h4 {[%clk 0:01:18.5]} 38. Kg2 {[%clk 0:00:03.7]} 38...
Nf4+ {[%clk 0:01:17.7]} 39. Kh2 {[%clk 0:00:04.9]} 0-1

[Event "*** Titled Tuesday Blitz"]
[Site "Chess.com"]
[Date "2018.06.05"]
[Round "3"]
[White "sergiochess83"]
[Black "Blitzstream"]
[Result "1-0"]
[WhiteElo "2760"]
[BlackElo "2431"]
[TimeControl "180+2"]
[EndTime "13:40:48 PDT"]
[Termination "sergiochess83 won by resignation"]

1. e4 {[%clk 0:03:01.9]} 1... e5 {[%clk 0:03:00.6]} 2. Nf3 {[%clk 0:03:02.7]}
2... Nf6 {[%clk 0:03:01.3]} 3. Nxe5 {[%clk 0:03:00.5]} 3... d5 {[%clk
0:03:01.3]} 4. exd5 {[%clk 0:02:58.2]} 4... Qxd5 {[%clk 0:03:02.1]} 5. d4 {[%clk
0:02:51.2]} 5... Nc6 {[%clk 0:03:00.8]} 6. Nc3 {[%clk 0:02:01.9]} 6... Bb4
{[%clk 0:02:55.1]} 7. Nxc6 {[%clk 0:01:40.2]} 7... Qxc6 {[%clk 0:02:54.7]} 8.
Qf3 {[%clk 0:01:41.1]} 8... Qxf3 {[%clk 0:02:43.1]} 9. gxf3 {[%clk 0:01:41.7]}
9... Bf5 {[%clk 0:02:45]} 10. a3 {[%clk 0:01:25.9]} 10... Ba5 {[%clk 0:02:27.3]}
11. Bd3 {[%clk 0:00:43.5]} 11... Bxd3 {[%clk 0:02:25]} 12. cxd3 {[%clk
0:00:45.4]} 12... O-O-O {[%clk 0:02:26.4]} 13. Be3 {[%clk 0:00:45.8]} 13... Bb6
{[%clk 0:02:18.8]} 14. Ne4 {[%clk 0:00:40.9]} 14... Bxd4 {[%clk 0:02:02.2]} 15.
O-O-O {[%clk 0:00:41.4]} 15... Nh5 {[%clk 0:01:18.5]} 16. Kc2 {[%clk 0:00:30.6]}
16... h6 {[%clk 0:01:05.3]} 17. Ng3 {[%clk 0:00:31.2]} 17... Nf6 {[%clk
0:01:03.4]} 18. Nf5 {[%clk 0:00:31.9]} 18... Bxe3 {[%clk 0:01:00.2]} 19. fxe3
{[%clk 0:00:32.6]} 19... g6 {[%clk 0:01:01.4]} 20. Ng3 {[%clk 0:00:31.7]} 20...
h5 {[%clk 0:01:02.1]} 21. e4 {[%clk 0:00:32]} 21... c5 {[%clk 0:01:03.4]} 22. b4
{[%clk 0:00:28.5]} 22... Nd7 {[%clk 0:01:00.8]} 23. f4 {[%clk 0:00:28.3]} 23...
cxb4 {[%clk 0:00:59.4]} 24. axb4 {[%clk 0:00:28.9]} 24... Kc7 {[%clk 0:00:59.9]}
25. Ne2 {[%clk 0:00:27.2]} 25... Kd6 {[%clk 0:00:59.1]} 26. d4 {[%clk 0:00:27]}
26... a6 {[%clk 0:00:59.8]} 27. Nc3 {[%clk 0:00:24.7]} 27... Nb6 {[%clk
0:00:59.9]} 28. d5 {[%clk 0:00:19.9]} 28... f6 {[%clk 0:00:58.8]} 29. Rhg1
{[%clk 0:00:21]} 29... Rhg8 {[%clk 0:00:59.4]} 30. h4 {[%clk 0:00:22.1]} 30...
Rc8 {[%clk 0:00:59.4]} 31. Kb3 {[%clk 0:00:23.2]} 31... Nc4 {[%clk 0:00:54.7]}
32. Rge1 {[%clk 0:00:16.5]} 32... Rge8 {[%clk 0:00:52.4]} 33. e5+ {[%clk
0:00:15.1]} 33... fxe5 {[%clk 0:00:51.5]} 34. Ne4+ {[%clk 0:00:16.6]} 34... Ke7
{[%clk 0:00:45.4]} 35. d6+ {[%clk 0:00:17.5]} 35... Kd7 {[%clk 0:00:35.7]} 36.
Nf6+ {[%clk 0:00:18.5]} 36... Ke6 {[%clk 0:00:36.9]} 37. Nxe8 {[%clk 0:00:19.4]}
1-0

[Event "*** Titled Tuesday Blitz"]
[Site "Chess.com"]
[Date "2018.06.05"]
[Round "3"]
[White "Jbd735"]
[Black "NikolaGry"]
[Result "0-1"]
[WhiteElo "2374"]
[BlackElo "2582"]
[TimeControl "180+2"]
[EndTime "13:40:49 PDT"]
[Termination "NikolaGry won by resignation"]

1. e4 {[%clk 0:03:01.9]} 1... d5 {[%clk 0:02:59.3]} 2. exd5 {[%clk 0:03:01.9]}
2... Nf6 {[%clk 0:03:00.5]} 3. d4 {[%clk 0:03:00.1]} 3... Nxd5 {[%clk
0:03:01.1]} 4. Nf3 {[%clk 0:03:00.1]} 4... g6 {[%clk 0:03:01.3]} 5. c4 {[%clk
0:02:55]} 5... Nb6 {[%clk 0:03:01.4]} 6. Nc3 {[%clk 0:02:49.2]} 6... Bg7 {[%clk
0:03:01.2]} 7. c5 {[%clk 0:02:47.8]} 7... Nd5 {[%clk 0:03:02]} 8. Bc4 {[%clk
0:02:48.3]} 8... c6 {[%clk 0:03:02.5]} 9. Qb3 {[%clk 0:02:25.6]} 9... O-O {[%clk
0:03:02.2]} 10. O-O {[%clk 0:01:23.3]} 10... Nxc3 {[%clk 0:02:46.6]} 11. bxc3
{[%clk 0:01:23.1]} 11... b5 {[%clk 0:02:43.3]} 12. Bd3 {[%clk 0:00:52.4]} 12...
Be6 {[%clk 0:02:41.9]} 13. Qc2 {[%clk 0:00:50]} 13... Nd7 {[%clk 0:02:19.8]} 14.
Re1 {[%clk 0:00:42.2]} 14... Bd5 {[%clk 0:02:17.4]} 15. Be4 {[%clk 0:00:40.9]}
15... Nf6 {[%clk 0:02:16.6]} 16. Bxd5 {[%clk 0:00:40.5]} 16... Nxd5 {[%clk
0:02:16.7]} 17. Bg5 {[%clk 0:00:29.8]} 17... Re8 {[%clk 0:02:15.3]} 18. a4
{[%clk 0:00:27.5]} 18... a6 {[%clk 0:02:13.1]} 19. h3 {[%clk 0:00:16.6]} 19...
Qc8 {[%clk 0:02:04.3]} 20. Bh4 {[%clk 0:00:16.4]} 20... Qf5 {[%clk 0:01:56.3]}
21. Qxf5 {[%clk 0:00:14.6]} 21... gxf5 {[%clk 0:01:56.2]} 22. axb5 {[%clk
0:00:07.3]} 22... axb5 {[%clk 0:01:21.6]} 23. Rac1 {[%clk 0:00:03.1]} 23... Ra4
{[%clk 0:01:03.4]} 24. Kf1 {[%clk 0:00:03.2]} 24... Rc4 {[%clk 0:01:01.5]} 25.
Bg3 {[%clk 0:00:02.8]} 25... Nxc3 {[%clk 0:00:51.7]} 26. Ne5 {[%clk 0:00:03]}
26... Bxe5 {[%clk 0:00:50.4]} 27. Bxe5 {[%clk 0:00:03.5]} 27... Nd5 {[%clk
0:00:49.3]} 28. Rxc4 {[%clk 0:00:03.7]} 28... bxc4 {[%clk 0:00:50.2]} 29. Ke2
{[%clk 0:00:03.9]} 29... Ra8 {[%clk 0:00:49]} 30. Rc1 {[%clk 0:00:04.6]} 30...
f6 {[%clk 0:00:46.4]} 31. Bg3 {[%clk 0:00:04.4]} 31... Ra2+ {[%clk 0:00:45.7]}
32. Kf3 {[%clk 0:00:03.5]} 32... Ra4 {[%clk 0:00:41.7]} 33. Bf4 {[%clk 0:00:03]}
33... Ra3+ {[%clk 0:00:39.7]} 34. Ke2 {[%clk 0:00:02.9]} 34... Nxf4+ {[%clk
0:00:39.7]} 0-1

[Event "*** Titled Tuesday Blitz"]
[Site "Chess.com"]
[Date "2018.06.05"]
[Round "3"]
[White "aa175"]
[Black "tteshan"]
[Result "1-0"]
[WhiteElo "1879"]
[BlackElo "1973"]
[TimeControl "180+2"]
[EndTime "13:40:49 PDT"]
[Termination "aa175 won by checkmate"]

1. e4 {[%clk 0:02:57.6]} 1... c5 {[%clk 0:02:59.7]} 2. Nf3 {[%clk 0:02:54]} 2...
e6 {[%clk 0:03:00.8]} 3. b4 {[%clk 0:02:48.1]} 3... cxb4 {[%clk 0:03:00.9]} 4.
a3 {[%clk 0:02:48.8]} 4... bxa3 {[%clk 0:02:59.9]} 5. Rxa3 {[%clk 0:02:48.6]}
5... Bxa3 {[%clk 0:02:59]} 6. Bxa3 {[%clk 0:02:50.5]} 6... d6 {[%clk 0:02:55.4]}
7. d4 {[%clk 0:02:43.7]} 7... Nf6 {[%clk 0:02:54.6]} 8. Nbd2 {[%clk 0:02:41.6]}
8... Nc6 {[%clk 0:02:51.3]} 9. Bd3 {[%clk 0:02:38.5]} 9... Qc7 {[%clk
0:02:36.8]} 10. h4 {[%clk 0:02:28]} 10... Bd7 {[%clk 0:02:19]} 11. Nc4 {[%clk
0:02:12.9]} 11... Ne7 {[%clk 0:01:54]} 12. Bxd6 {[%clk 0:01:51.3]} 12... Qc6
{[%clk 0:01:48.3]} 13. Nfe5 {[%clk 0:01:43.8]} 13... Qc8 {[%clk 0:01:36]} 14.
Qb1 {[%clk 0:01:32.2]} 14... Nc6 {[%clk 0:01:18.7]} 15. Ba3 {[%clk 0:01:19.3]}
15... Qb8 {[%clk 0:00:38.6]} 16. Nd6+ {[%clk 0:01:13.9]} 16... Kf8 {[%clk
0:00:40.1]} 17. Nf5+ {[%clk 0:00:14.7]} 17... Kg8 {[%clk 0:00:36.8]} 18. Nxc6
{[%clk 0:00:02.5]} 18... Qe8 {[%clk 0:00:13.4]} 19. Nce7+ {[%clk 0:00:02.7]}
19... Kf8 {[%clk 0:00:11.9]} 20. Ng6+ {[%clk 0:00:03.6]} 20... Kg8 {[%clk
0:00:13]} 21. Nfe7+ {[%clk 0:00:04.9]} 21... Qxe7 {[%clk 0:00:14.4]} 22. Nxe7+
{[%clk 0:00:06.3]} 22... Kf8 {[%clk 0:00:16.1]} 23. Ng6+ {[%clk 0:00:07.7]}
23... Ke8 {[%clk 0:00:16.6]} 24. Nxh8 {[%clk 0:00:08.6]} 24... Bc6 {[%clk
0:00:16.3]} 25. e5 {[%clk 0:00:08.8]} 25... Nd5 {[%clk 0:00:16.8]} 26. Bb5
{[%clk 0:00:09.9]} 26... Rc8 {[%clk 0:00:16.6]} 27. Bxc6+ {[%clk 0:00:10.8]}
27... bxc6 {[%clk 0:00:18.2]} 28. Qb7 {[%clk 0:00:12.3]} 28... Rc7 {[%clk
0:00:19.1]} 29. Qb8+ {[%clk 0:00:12.1]} 29... Kd7 {[%clk 0:00:20.1]} 30. Nxf7
{[%clk 0:00:12.2]} 30... Nb6 {[%clk 0:00:19.4]} 31. Qd8# {[%clk 0:00:09.1]} 1-0

[Event "*** Titled Tuesday Blitz"]
[Site "Chess.com"]
[Date "2018.06.05"]
[Round "3"]
[White "Hollywood_Chess"]
[Black "StoreySniper"]
[Result "1-0"]
[WhiteElo "2224"]
[BlackElo "2335"]
[TimeControl "180+2"]
[EndTime "13:40:50 PDT"]
[Termination "Hollywood_Chess won by resignation"]

1. e4 {[%clk 0:03:01.1]} 1... c6 {[%clk 0:02:59.1]} 2. d4 {[%clk 0:03:01.9]}
2... d5 {[%clk 0:02:59.3]} 3. exd5 {[%clk 0:03:03.5]} 3... cxd5 {[%clk
0:03:00.4]} 4. Bd3 {[%clk 0:03:05]} 4... Nc6 {[%clk 0:03:00.2]} 5. c3 {[%clk
0:03:06.5]} 5... Nf6 {[%clk 0:03:00.7]} 6. Bf4 {[%clk 0:03:07.9]} 6... Bg4
{[%clk 0:02:55.6]} 7. Qb3 {[%clk 0:03:07.7]} 7... Qd7 {[%clk 0:02:54.1]} 8. Nd2
{[%clk 0:03:08.6]} 8... e6 {[%clk 0:02:53.8]} 9. Ngf3 {[%clk 0:03:09.3]} 9...
Bh5 {[%clk 0:02:44.9]} 10. O-O {[%clk 0:03:09]} 10... Bg6 {[%clk 0:02:45.4]} 11.
Bxg6 {[%clk 0:03:08.8]} 11... hxg6 {[%clk 0:02:46.2]} 12. Ne5 {[%clk 0:03:08.7]}
12... Nxe5 {[%clk 0:02:44.8]} 13. dxe5 {[%clk 0:03:05.2]} 13... Ng4 {[%clk
0:02:17]} 14. h3 {[%clk 0:03:03.6]} 14... Nh6 {[%clk 0:02:17.7]} 15. Nf3 {[%clk
0:02:59.3]} 15... Be7 {[%clk 0:02:14.8]} 16. Rfd1 {[%clk 0:02:53.9]} 16... Qc7
{[%clk 0:02:08.8]} 17. Rac1 {[%clk 0:02:51.7]} 17... O-O {[%clk 0:02:05.9]} 18.
c4 {[%clk 0:02:52.5]} 18... dxc4 {[%clk 0:02:06]} 19. Rxc4 {[%clk 0:02:52.6]}
19... Qb6 {[%clk 0:01:58.9]} 20. Rd7 {[%clk 0:02:46.1]} 20... Bc5 {[%clk
0:01:49.5]} 21. Qxb6 {[%clk 0:02:40.1]} 21... axb6 {[%clk 0:01:49.3]} 22. b4
{[%clk 0:02:40.6]} 22... Bxf2+ {[%clk 0:01:41.1]} 23. Kxf2 {[%clk 0:02:34.1]}
23... Rxa2+ {[%clk 0:01:42.3]} 24. Rd2 {[%clk 0:02:35.3]} 24... Ra4 {[%clk
0:01:36]} 25. Bxh6 {[%clk 0:02:17.2]} 25... gxh6 {[%clk 0:01:35.9]} 26. Rd7
{[%clk 0:02:18]} 26... b5 {[%clk 0:01:31]} 27. Rcd4 {[%clk 0:02:16.2]} 27...
Ra2+ {[%clk 0:01:23.7]} 28. Kg3 {[%clk 0:02:16.4]} 28... Rc8 {[%clk 0:01:18]}
29. Rxb7 {[%clk 0:02:16.4]} 29... Rcc2 {[%clk 0:01:17.2]} 30. Rd8+ {[%clk
0:02:05]} 30... Kg7 {[%clk 0:01:15.7]} 31. Rdd7 {[%clk 0:01:47.6]} 31... Rxg2+
{[%clk 0:01:15.5]} 32. Kf4 {[%clk 0:01:39.8]} 32... g5+ {[%clk 0:01:11.2]} 33.
Ke4 {[%clk 0:01:36.5]} 33... Kg6 {[%clk 0:00:58.7]} 34. Rxf7 {[%clk 0:01:36.9]}
34... Kh5 {[%clk 0:00:55.4]} 35. Nd4 {[%clk 0:01:35.1]} 35... Rad2 {[%clk
0:00:42.4]} 36. Rxb5 {[%clk 0:00:45.5]} 36... g4 {[%clk 0:00:42.1]} 37. Nxe6
{[%clk 0:00:28]} 37... Rge2+ {[%clk 0:00:39.6]} 38. Kf5 {[%clk 0:00:25.8]} 38...
Rf2+ {[%clk 0:00:40.6]} 39. Nf4+ {[%clk 0:00:26.9]} 39... Rxf4+ {[%clk
0:00:41.6]} 40. Kxf4 {[%clk 0:00:28]} 40... Rf2+ {[%clk 0:00:42.8]} 41. Kg3
{[%clk 0:00:29.3]} 41... Rxf7 {[%clk 0:00:43.6]} 42. e6+ {[%clk 0:00:30.1]} 1-0